[Event "Titled Tuesday Blitz July 13 2021"]
[White "Alavkin, Arseny"]
[Black "Dolzhykova, Kateryna"]
[WhiteFideId "4120612"]
[BlackFideId "14113414"]
[WhiteElo "2401"]
[BlackElo "2151"]
[Result "1-0"]
[Round "01"]
[TimeControl "180+1"]
[Date "2021.07.13"]
[WhiteClock "0:01:48"]
[BlackClock "0:00:39"]

1. e4 {[%clk 0:03:00]}  c6 {[%clk 0:02:58]} 2. d4 {[%clk 0:03:00]}  d5 {[%clk 0:02:59]} 3. exd5 {[%clk 0:03:01]}  cxd5 {[%clk 0:02:59]} 4. Bd3 {[%clk 0:03:02]}  Nc6 {[%clk 0:02:58]} 5. c3 {[%clk 0:03:03]}  Qc7 {[%clk 0:02:57]} 6. Na3 {[%clk 0:03:03]}  a6 {[%clk 0:02:56]} 7. Nc2 {[%clk 0:03:03]}  Nf6 {[%clk 0:02:55]} 8. h3 {[%clk 0:03:03]}  g6 {[%clk 0:02:55]} 9. Ne2 {[%clk 0:03:03]}  Bg7 {[%clk 0:02:55]} 10. Bf4 {[%clk 0:03:02]}  Qb6 {[%clk 0:02:49]} 11. Rb1 {[%clk 0:03:02]}  Bf5 {[%clk 0:02:48]} 12. Bxf5 {[%clk 0:03:02]}  gxf5 {[%clk 0:01:52]} 13. Ne3 {[%clk 0:03:03]}  e6 {[%clk 0:01:52]} 14. g4 {[%clk 0:03:01]}  fxg4 {[%clk 0:01:51]} 15. hxg4 {[%clk 0:03:01]}  O-O-O {[%clk 0:01:37]} 16. Qd3 {[%clk 0:02:55]}  h6 {[%clk 0:01:30]} 17. f3 {[%clk 0:02:48]}  Qa5 {[%clk 0:01:24]} 18. a3 {[%clk 0:02:43]}  Qb5 {[%clk 0:01:24]} 19. Kd2 {[%clk 0:02:35]}  Na5 {[%clk 0:01:21]} 20. Qxb5 {[%clk 0:02:27]}  axb5 {[%clk 0:01:22]} 21. b3 {[%clk 0:02:26]}  Bf8 {[%clk 0:01:19]} 22. Be5 {[%clk 0:02:23]}  Be7 {[%clk 0:01:17]} 23. Kc2 {[%clk 0:02:19]}  Nc6 {[%clk 0:01:17]} 24. Bf4 {[%clk 0:02:15]}  Kd7 {[%clk 0:01:16]} 25. Bxh6 {[%clk 0:02:07]}  Rc8 {[%clk 0:01:13]} 26. Kd3 {[%clk 0:02:02]}  Rh7 {[%clk 0:01:12]} 27. Bf4 {[%clk 0:02:00]}  Rch8 {[%clk 0:01:11]} 28. Ng3 {[%clk 0:02:00]}  Bd6 {[%clk 0:01:02]} 29. Bxd6 {[%clk 0:01:58]}  Kxd6 {[%clk 0:01:03]} 30. Rxh7 {[%clk 0:01:57]}  Rxh7 {[%clk 0:01:03]} 31. Rh1 {[%clk 0:01:58]}  Rg7 {[%clk 0:01:03]} 32. Ngf5+ {[%clk 0:01:54]}  exf5 {[%clk 0:00:58]} 33. Nxf5+ {[%clk 0:01:55]}  Kc7 {[%clk 0:00:58]} 34. Nxg7 {[%clk 0:01:56]}  Ne7 {[%clk 0:00:58]} 35. Nf5 {[%clk 0:01:52]}  Ng6 {[%clk 0:00:56]} 36. Ke3 {[%clk 0:01:48]}  Kd7 {[%clk 0:00:52]} 37. Nh4 {[%clk 0:01:43]}  Ne7 {[%clk 0:00:50]} 38. Kf4 {[%clk 0:01:41]}  Kd6 {[%clk 0:00:49]} 39. Nf5+ {[%clk 0:01:41]}  Nxf5 {[%clk 0:00:49]} 40. Kxf5 {[%clk 0:01:42]}  Nd7 {[%clk 0:00:49]} 41. Rh7 {[%clk 0:01:42]}  Ke7 {[%clk 0:00:49]} 42. g5 {[%clk 0:01:42]}  Nf8 {[%clk 0:00:50]} 43. Rh2 {[%clk 0:01:41]}  Ng6 {[%clk 0:00:50]} 44. Re2+ {[%clk 0:01:41]}  Kd7 {[%clk 0:00:49]} 45. Kf6 {[%clk 0:01:42]}  Nf4 {[%clk 0:00:49]} 46. Re5 {[%clk 0:01:43]}  Nd3 {[%clk 0:00:43]} 47. Kxf7 {[%clk 0:01:43]}  b4 {[%clk 0:00:40]} 48. axb4 {[%clk 0:01:39]}  Kd6 {[%clk 0:00:37]} 49. g6 {[%clk 0:01:38]}  Nxe5+ {[%clk 0:00:37]} 50. dxe5+ {[%clk 0:01:39]}  Kxe5 {[%clk 0:00:37]} 51. g7 {[%clk 0:01:40]}  d4 {[%clk 0:00:38]} 52. g8=Q {[%clk 0:01:41]}  dxc3 {[%clk 0:00:38]} 53. Qg7+ {[%clk 0:01:42]}  Kf4 {[%clk 0:00:37]} 54. Qxc3 {[%clk 0:01:42]}  b5 {[%clk 0:00:38]} 55. Qc5 {[%clk 0:01:42]}  Kg3 {[%clk 0:00:37]} 56. Qxb5 {[%clk 0:01:43]}  Kf2 {[%clk 0:00:38]} 57. Qc4 {[%clk 0:01:44]}  Ke3 {[%clk 0:00:36]} 58. b5 {[%clk 0:01:44]}  Kd2 {[%clk 0:00:37]} 59. b6 {[%clk 0:01:45]}  Ke3 {[%clk 0:00:37]} 60. b7 {[%clk 0:01:46]}  Kd2 {[%clk 0:00:38]} 61. b8=Q {[%clk 0:01:47]}  Ke3 {[%clk 0:00:38]} 62. Qbf4+ {[%clk 0:01:47]}  Kf2 {[%clk 0:00:39]} 63. Qd2+ {[%clk 0:01:48]}  Kg3 {[%clk 0:00:39]} 64. Qg4# {[%clk 0:01:48]} 1-0


[Site "https://www.chess.com"]

[Event "Titled Tuesday Blitz July 13 2021"]
[White "Aradhya, Garg"]
[Black "Toncheva, Nadya"]
[WhiteFideId "25006746"]
[BlackFideId "2924056"]
[WhiteElo "2146"]
[BlackElo "1920"]
[Result "1-0"]
[Round "01"]
[TimeControl "180+1"]
[Date "2021.07.13"]
[WhiteClock "0:01:00"]
[BlackClock "0:00:50"]

1. d4 {[%clk 0:03:00]}  Nf6 {[%clk 0:02:59]} 2. c4 {[%clk 0:03:01]}  e6 {[%clk 0:03:00]} 3. Nf3 {[%clk 0:03:01]}  c5 {[%clk 0:03:00]} 4. d5 {[%clk 0:03:01]}  exd5 {[%clk 0:03:01]} 5. cxd5 {[%clk 0:03:01]}  d6 {[%clk 0:03:02]} 6. e4 {[%clk 0:03:01]}  a6 {[%clk 0:02:59]} 7. Nbd2 {[%clk 0:02:57]}  g6 {[%clk 0:02:55]} 8. a4 {[%clk 0:02:54]}  Bg4 {[%clk 0:02:55]} 9. Bd3 {[%clk 0:02:54]}  Bg7 {[%clk 0:02:53]} 10. O-O {[%clk 0:02:53]}  O-O {[%clk 0:02:51]} 11. Qb3 {[%clk 0:02:53]}  Qc7 {[%clk 0:02:45]} 12. h3 {[%clk 0:02:22]}  Bxf3 {[%clk 0:02:44]} 13. Nxf3 {[%clk 0:02:23]}  c4 {[%clk 0:02:38]} 14. Qxc4 {[%clk 0:02:19]}  Qxc4 {[%clk 0:02:37]} 15. Bxc4 {[%clk 0:02:20]}  Nxe4 {[%clk 0:02:38]} 16. Re1 {[%clk 0:02:20]}  f5 {[%clk 0:02:29]} 17. Ng5 {[%clk 0:02:14]}  Nd7 {[%clk 0:01:50]} 18. Nxe4 {[%clk 0:02:03]}  Rae8 {[%clk 0:01:49]} 19. Bf4 {[%clk 0:01:59]}  Rxe4 {[%clk 0:01:38]} 20. Rxe4 {[%clk 0:01:58]}  fxe4 {[%clk 0:01:39]} 21. Bxd6 {[%clk 0:01:58]}  Rc8 {[%clk 0:01:39]} 22. Bb3 {[%clk 0:01:11]}  Bxb2 {[%clk 0:01:37]} 23. Rb1 {[%clk 0:01:10]}  Bd4 {[%clk 0:01:17]} 24. Rd1 {[%clk 0:01:10]}  Bf6 {[%clk 0:01:13]} 25. Bb4 {[%clk 0:01:06]}  Kg7 {[%clk 0:01:05]} 26. d6 {[%clk 0:01:06]}  Rd8 {[%clk 0:01:00]} 27. Rc1 {[%clk 0:01:03]}  Nb8 {[%clk 0:00:50]} 28. Rc7+ {[%clk 0:01:01]}  Rd7 {[%clk 0:00:50]} 29. Be6 {[%clk 0:01:00]} 1-0


[Site "https://www.chess.com"]

[Event "Titled Tuesday Blitz July 13 2021"]
[White "Ashwin, Jayaram"]
[Black "Cabarkapa, Novak"]
[WhiteFideId "5018137"]
[BlackFideId "943746"]
[WhiteElo "2461"]
[BlackElo "2469"]
[Result "0-1"]
[Round "01"]
[TimeControl "180+1"]
[Date "2021.07.13"]
[WhiteClock "0:00:34"]
[BlackClock "0:00:26"]

1. d4 {[%clk 0:02:59]}  Nf6 {[%clk 0:03:00]} 2. c4 {[%clk 0:02:57]}  g6 {[%clk 0:03:00]} 3. Nc3 {[%clk 0:02:56]}  Bg7 {[%clk 0:03:00]} 4. e4 {[%clk 0:02:57]}  O-O {[%clk 0:03:01]} 5. Nf3 {[%clk 0:02:57]}  d6 {[%clk 0:03:01]} 6. Be2 {[%clk 0:02:57]}  Na6 {[%clk 0:03:01]} 7. O-O {[%clk 0:02:56]}  e5 {[%clk 0:03:00]} 8. Be3 {[%clk 0:02:55]}  Qe7 {[%clk 0:02:59]} 9. dxe5 {[%clk 0:02:51]}  dxe5 {[%clk 0:03:00]} 10. Nd5 {[%clk 0:02:52]}  Qd8 {[%clk 0:03:01]} 11. Nxf6+ {[%clk 0:02:48]}  Qxf6 {[%clk 0:03:02]} 12. a3 {[%clk 0:02:45]}  c6 {[%clk 0:03:00]} 13. b4 {[%clk 0:02:45]}  Nc7 {[%clk 0:02:57]} 14. Qc2 {[%clk 0:02:42]}  Ne6 {[%clk 0:02:56]} 15. Rad1 {[%clk 0:02:41]}  Nf4 {[%clk 0:02:52]} 16. Bxf4 {[%clk 0:02:35]}  Qxf4 {[%clk 0:02:50]} 17. Rfe1 {[%clk 0:02:30]}  Be6 {[%clk 0:02:48]} 18. c5 {[%clk 0:02:29]}  Rfd8 {[%clk 0:02:37]} 19. Nd2 {[%clk 0:02:27]}  Rd4 {[%clk 0:02:16]} 20. f3 {[%clk 0:02:06]}  Qe3+ {[%clk 0:01:47]} 21. Kh1 {[%clk 0:02:02]}  Qxa3 {[%clk 0:01:45]} 22. b5 {[%clk 0:01:35]}  cxb5 {[%clk 0:01:40]} 23. Bxb5 {[%clk 0:01:33]}  Rc8 {[%clk 0:01:39]} 24. c6 {[%clk 0:01:21]}  bxc6 {[%clk 0:01:38]} 25. Bc4 {[%clk 0:01:20]}  Qc5 {[%clk 0:01:31]} 26. Bb3 {[%clk 0:01:17]}  Qxc2 {[%clk 0:01:28]} 27. Bxc2 {[%clk 0:01:17]}  Rcd8 {[%clk 0:01:20]} 28. Nb3 {[%clk 0:01:16]}  Rxd1 {[%clk 0:01:20]} 29. Rxd1 {[%clk 0:01:17]}  Rxd1+ {[%clk 0:01:20]} 30. Bxd1 {[%clk 0:01:18]}  Bf8 {[%clk 0:01:20]} 31. Na5 {[%clk 0:01:15]}  c5 {[%clk 0:01:12]} 32. Be2 {[%clk 0:01:15]}  Bd7 {[%clk 0:01:07]} 33. Bc4 {[%clk 0:01:12]}  Bh6 {[%clk 0:01:02]} 34. Kg1 {[%clk 0:01:07]}  Kf8 {[%clk 0:01:00]} 35. Kf1 {[%clk 0:01:07]}  Ke7 {[%clk 0:01:00]} 36. Ke2 {[%clk 0:01:08]}  f5 {[%clk 0:00:56]} 37. Kd3 {[%clk 0:01:06]}  Kd6 {[%clk 0:00:51]} 38. Bd5 {[%clk 0:01:03]}  Kc7 {[%clk 0:00:46]} 39. Kc4 {[%clk 0:01:01]}  Kb6 {[%clk 0:00:45]} 40. Nb3 {[%clk 0:00:59]}  Bb5+ {[%clk 0:00:45]} 41. Kc3 {[%clk 0:00:59]}  a5 {[%clk 0:00:45]} 42. Bg8 {[%clk 0:00:53]}  Be8 {[%clk 0:00:43]} 43. Bxh7 {[%clk 0:00:51]}  fxe4 {[%clk 0:00:43]} 44. fxe4 {[%clk 0:00:48]}  Bf7 {[%clk 0:00:43]} 45. h4 {[%clk 0:00:48]}  a4 {[%clk 0:00:41]} 46. Na1 {[%clk 0:00:46]}  Be3 {[%clk 0:00:36]} 47. Kc2 {[%clk 0:00:44]}  Bd4 {[%clk 0:00:35]} 48. Kb1 {[%clk 0:00:43]}  Bxa1 {[%clk 0:00:35]} 49. Kxa1 {[%clk 0:00:43]}  c4 {[%clk 0:00:35]} 50. Kb2 {[%clk 0:00:42]}  Kc5 {[%clk 0:00:36]} 51. Kc3 {[%clk 0:00:42]}  a3 {[%clk 0:00:36]} 52. g4 {[%clk 0:00:42]}  a2 {[%clk 0:00:31]} 53. Kb2 {[%clk 0:00:42]}  Kd4 {[%clk 0:00:32]} 54. Kxa2 {[%clk 0:00:38]}  Kc3 {[%clk 0:00:25]} 55. g5 {[%clk 0:00:37]}  Kd2 {[%clk 0:00:25]} 56. h5 {[%clk 0:00:35]}  c3+ {[%clk 0:00:25]} 57. Ka3 {[%clk 0:00:34]}  c2 {[%clk 0:00:25]} 58. hxg6 {[%clk 0:00:34]}  c1=Q+ {[%clk 0:00:26]} 0-1


[Site "https://www.chess.com"]

[Event "Titled Tuesday Blitz July 13 2021"]
[White "Bilych, Olexiy"]
[Black "Gevorgyan, Maria"]
[WhiteFideId "14156504"]
[BlackFideId "13300270"]
[WhiteElo "2246"]
[BlackElo "2210"]
[Result "1-0"]
[Round "01"]
[TimeControl "180+1"]
[Date "2021.07.13"]
[WhiteClock "0:01:08"]
[BlackClock "0:01:01"]

1. e4 {[%clk 0:03:00]}  c5 {[%clk 0:02:52]} 2. Nf3 {[%clk 0:03:00]}  Nc6 {[%clk 0:02:51]} 3. Bb5 {[%clk 0:02:59]}  g6 {[%clk 0:02:49]} 4. O-O {[%clk 0:02:58]}  Bg7 {[%clk 0:02:46]} 5. c3 {[%clk 0:02:58]}  Nf6 {[%clk 0:02:46]} 6. Re1 {[%clk 0:02:58]}  O-O {[%clk 0:02:45]} 7. d4 {[%clk 0:02:57]}  cxd4 {[%clk 0:02:43]} 8. e5 {[%clk 0:02:49]}  Nd5 {[%clk 0:02:41]} 9. cxd4 {[%clk 0:02:49]}  d6 {[%clk 0:02:38]} 10. Nc3 {[%clk 0:02:47]}  Nc7 {[%clk 0:02:38]} 11. Bxc6 {[%clk 0:02:42]}  bxc6 {[%clk 0:02:37]} 12. Bg5 {[%clk 0:02:42]}  h6 {[%clk 0:02:34]} 13. exd6 {[%clk 0:02:38]}  hxg5 {[%clk 0:02:33]} 14. dxe7 {[%clk 0:02:38]}  Qd6 {[%clk 0:02:32]} 15. exf8=Q+ {[%clk 0:02:38]}  Kxf8 {[%clk 0:02:31]} 16. Ne4 {[%clk 0:02:36]}  Qd5 {[%clk 0:02:30]} 17. Nexg5 {[%clk 0:02:17]}  Bg4 {[%clk 0:02:26]} 18. h3 {[%clk 0:02:17]}  Bd7 {[%clk 0:02:21]} 19. Ne5 {[%clk 0:02:09]}  Be8 {[%clk 0:02:12]} 20. Ne4 {[%clk 0:01:30]}  Rd8 {[%clk 0:02:05]} 21. Qf3 {[%clk 0:01:30]}  Bxe5 {[%clk 0:01:25]} 22. dxe5 {[%clk 0:01:29]}  Qxe5 {[%clk 0:01:23]} 23. Nf6 {[%clk 0:01:26]}  Qxb2 {[%clk 0:01:16]} 24. Qf4 {[%clk 0:01:15]}  Qd2 {[%clk 0:01:01]} 25. Qxc7 {[%clk 0:01:08]} 1-0


[Site "https://www.chess.com"]

[Event "Titled Tuesday Blitz July 13 2021"]
[White "Bouchet, Sebastien"]
[Black "Bernadskiy, Vitaliy"]
[WhiteFideId "623571"]
[BlackFideId "14100371"]
[WhiteElo "2419"]
[BlackElo "2510"]
[Result "0-1"]
[Round "01"]
[TimeControl "180+1"]
[Date "2021.07.13"]
[WhiteClock "0:01:31"]
[BlackClock "0:01:30"]

1. e4 {[%clk 0:02:58]}  c5 {[%clk 0:02:59]} 2. c3 {[%clk 0:02:58]}  Nf6 {[%clk 0:02:51]} 3. e5 {[%clk 0:02:57]}  Nd5 {[%clk 0:02:51]} 4. d4 {[%clk 0:02:58]}  cxd4 {[%clk 0:02:50]} 5. Nf3 {[%clk 0:02:58]}  Nc6 {[%clk 0:02:49]} 6. Bc4 {[%clk 0:02:58]}  e6 {[%clk 0:02:47]} 7. cxd4 {[%clk 0:02:56]}  d6 {[%clk 0:02:47]} 8. O-O {[%clk 0:02:55]}  Be7 {[%clk 0:02:46]} 9. exd6 {[%clk 0:02:53]}  Qxd6 {[%clk 0:02:46]} 10. Nc3 {[%clk 0:02:53]}  Nxc3 {[%clk 0:02:44]} 11. bxc3 {[%clk 0:02:53]}  O-O {[%clk 0:02:42]} 12. Re1 {[%clk 0:02:53]}  b6 {[%clk 0:02:42]} 13. Qe2 {[%clk 0:02:37]}  Bb7 {[%clk 0:02:41]} 14. Bd3 {[%clk 0:02:37]}  Rac8 {[%clk 0:02:39]} 15. Qe4 {[%clk 0:02:33]}  g6 {[%clk 0:02:38]} 16. Bh6 {[%clk 0:02:33]}  Rfe8 {[%clk 0:02:35]} 17. Bg5 {[%clk 0:02:27]}  Na5 {[%clk 0:02:25]} 18. Qh4 {[%clk 0:02:26]}  Bxf3 {[%clk 0:02:23]} 19. gxf3 {[%clk 0:02:25]}  Bxg5 {[%clk 0:02:20]} 20. Qxg5 {[%clk 0:02:24]}  Rxc3 {[%clk 0:02:20]} 21. Rad1 {[%clk 0:02:23]}  Rd8 {[%clk 0:02:04]} 22. Be4 {[%clk 0:02:12]}  Nc4 {[%clk 0:01:57]} 23. d5 {[%clk 0:02:11]}  e5 {[%clk 0:01:52]} 24. Rc1 {[%clk 0:02:07]}  Rxc1 {[%clk 0:01:48]} 25. Rxc1 {[%clk 0:02:06]}  b5 {[%clk 0:01:49]} 26. f4 {[%clk 0:01:46]}  exf4 {[%clk 0:01:40]} 27. h4 {[%clk 0:01:46]}  Re8 {[%clk 0:01:40]} 28. Bf3 {[%clk 0:01:44]}  Nd2 {[%clk 0:01:33]} 29. Kg2 {[%clk 0:01:39]}  Nxf3 {[%clk 0:01:32]} 30. Kxf3 {[%clk 0:01:40]}  Qa3+ {[%clk 0:01:32]} 31. Kg4 {[%clk 0:01:31]}  Qxc1 {[%clk 0:01:30]} 0-1


[Site "https://www.chess.com"]

[Event "Titled Tuesday Blitz July 13 2021"]
[White "Chiu, Isaac"]
[Black "Zhukov, Maksim"]
[WhiteFideId "30900654"]
[BlackFideId "34181790"]
[WhiteElo "2117"]
[BlackElo "1992"]
[Result "1-0"]
[Round "01"]
[TimeControl "180+1"]
[Date "2021.07.13"]
[WhiteClock "0:00:34"]
[BlackClock "0:00:02"]

1. e4 {[%clk 0:03:00]}  d5 {[%clk 0:02:57]} 2. exd5 {[%clk 0:03:00]}  Nf6 {[%clk 0:02:57]} 3. d4 {[%clk 0:03:00]}  Nxd5 {[%clk 0:02:56]} 4. Nf3 {[%clk 0:02:58]}  Bg4 {[%clk 0:02:56]} 5. c4 {[%clk 0:02:47]}  Nb6 {[%clk 0:02:51]} 6. c5 {[%clk 0:02:38]}  N6d7 {[%clk 0:02:51]} 7. Bc4 {[%clk 0:02:37]}  e6 {[%clk 0:02:51]} 8. Nc3 {[%clk 0:02:37]}  Nc6 {[%clk 0:02:51]} 9. Be3 {[%clk 0:02:36]}  Be7 {[%clk 0:02:50]} 10. h3 {[%clk 0:02:34]}  Bh5 {[%clk 0:02:50]} 11. O-O {[%clk 0:02:29]}  O-O {[%clk 0:02:50]} 12. Ne4 {[%clk 0:02:21]}  Nf6 {[%clk 0:02:48]} 13. Ng3 {[%clk 0:02:21]}  Bg6 {[%clk 0:02:48]} 14. Qe2 {[%clk 0:02:20]}  Nd5 {[%clk 0:02:43]} 15. Rfd1 {[%clk 0:02:18]}  Bf6 {[%clk 0:02:43]} 16. a3 {[%clk 0:02:16]}  h6 {[%clk 0:02:40]} 17. b4 {[%clk 0:02:16]}  a6 {[%clk 0:02:40]} 18. Rac1 {[%clk 0:02:15]}  Re8 {[%clk 0:02:38]} 19. Nh2 {[%clk 0:02:05]}  Bh4 {[%clk 0:02:33]} 20. Ng4 {[%clk 0:02:02]}  Bxg3 {[%clk 0:02:32]} 21. fxg3 {[%clk 0:02:02]}  Nxe3 {[%clk 0:02:29]} 22. Qxe3 {[%clk 0:02:01]}  Qe7 {[%clk 0:02:20]} 23. Kh2 {[%clk 0:02:00]}  Rad8 {[%clk 0:02:20]} 24. Rd2 {[%clk 0:02:00]}  Rd7 {[%clk 0:02:18]} 25. Rcd1 {[%clk 0:01:59]}  Red8 {[%clk 0:02:19]} 26. b5 {[%clk 0:01:56]}  Na5 {[%clk 0:02:07]} 27. Bf1 {[%clk 0:01:52]}  axb5 {[%clk 0:02:06]} 28. Bxb5 {[%clk 0:01:53]}  c6 {[%clk 0:02:06]} 29. Qc3 {[%clk 0:01:47]}  cxb5 {[%clk 0:02:01]} 30. Qxa5 {[%clk 0:01:47]}  Bh5 {[%clk 0:01:55]} 31. Qxb5 {[%clk 0:01:42]}  Bxg4 {[%clk 0:01:55]} 32. hxg4 {[%clk 0:01:43]}  Qg5 {[%clk 0:01:56]} 33. Qe2 {[%clk 0:01:43]}  Rd5 {[%clk 0:01:47]} 34. Qf3 {[%clk 0:01:42]}  Qg6 {[%clk 0:01:11]} 35. Qf4 {[%clk 0:01:34]}  Rg5 {[%clk 0:01:07]} 36. Qc7 {[%clk 0:01:30]}  Rdd5 {[%clk 0:01:07]} 37. Qxb7 {[%clk 0:01:27]}  Rxg4 {[%clk 0:01:08]} 38. Rd3 {[%clk 0:01:27]}  Rh5+ {[%clk 0:01:02]} 39. Kg1 {[%clk 0:01:27]}  Rxg3 {[%clk 0:01:00]} 40. Rxg3 {[%clk 0:01:27]}  Qxg3 {[%clk 0:01:01]} 41. Qa8+ {[%clk 0:01:20]}  Kh7 {[%clk 0:00:58]} 42. Qe4+ {[%clk 0:01:21]}  Kh8 {[%clk 0:00:44]} 43. Qa8+ {[%clk 0:01:20]}  Kh7 {[%clk 0:00:44]} 44. Qe4+ {[%clk 0:01:21]}  Kh8 {[%clk 0:00:23]} 45. c6 {[%clk 0:01:21]}  Qh2+ {[%clk 0:00:22]} 46. Kf2 {[%clk 0:01:21]}  Rf5+ {[%clk 0:00:22]} 47. Ke2 {[%clk 0:01:22]}  Qg3 {[%clk 0:00:19]} 48. Rf1 {[%clk 0:01:19]}  Rb5 {[%clk 0:00:13]} 49. Qc2 {[%clk 0:01:09]}  Qxg2+ {[%clk 0:00:10]} 50. Rf2 {[%clk 0:01:10]}  Qg4+ {[%clk 0:00:09]} 51. Ke3 {[%clk 0:01:05]}  Qg5+ {[%clk 0:00:07]} 52. Kd3 {[%clk 0:01:01]}  Qg3+ {[%clk 0:00:06]} 53. Kc4 {[%clk 0:01:01]}  Rd5 {[%clk 0:00:05]} 54. Rxf7 {[%clk 0:00:52]}  Qxa3 {[%clk 0:00:05]} 55. c7 {[%clk 0:00:43]}  Qa6+ {[%clk 0:00:04]} 56. Kc3 {[%clk 0:00:41]}  Qa5+ {[%clk 0:00:02]} 57. Kd3 {[%clk 0:00:35]}  Qb5+ {[%clk 0:00:02]} 58. Ke3 {[%clk 0:00:34]} 1-0


[Site "https://www.chess.com"]

[Event "Titled Tuesday Blitz July 13 2021"]
[White "Cornette, Matthieu"]
[Black "Colbow, Collin"]
[WhiteFideId "620084"]
[BlackFideId "16201132"]
[WhiteElo "2500"]
[BlackElo "2137"]
[Result "1-0"]
[Round "01"]
[TimeControl "180+1"]
[Date "2021.07.13"]
[WhiteClock "0:00:07"]
[BlackClock "0:00:02"]

1. Nc3 {[%clk 0:02:59]}  c5 {[%clk 0:02:51]} 2. e4 {[%clk 0:03:00]}  Nc6 {[%clk 0:02:48]} 3. Bb5 {[%clk 0:02:59]}  Nd4 {[%clk 0:02:47]} 4. Nf3 {[%clk 0:02:58]}  a6 {[%clk 0:02:47]} 5. Bd3 {[%clk 0:02:52]}  g6 {[%clk 0:02:46]} 6. O-O {[%clk 0:02:34]}  Bg7 {[%clk 0:02:45]} 7. Rb1 {[%clk 0:02:34]}  e6 {[%clk 0:02:41]} 8. b4 {[%clk 0:02:28]}  Nxf3+ {[%clk 0:02:31]} 9. Qxf3 {[%clk 0:02:25]}  cxb4 {[%clk 0:02:32]} 10. Rxb4 {[%clk 0:02:19]}  Ne7 {[%clk 0:02:32]} 11. Rb1 {[%clk 0:01:57]}  O-O {[%clk 0:02:30]} 12. Bb2 {[%clk 0:01:56]}  Nc6 {[%clk 0:02:27]} 13. Ne2 {[%clk 0:01:48]}  Ne5 {[%clk 0:02:25]} 14. Qg3 {[%clk 0:01:45]}  Nxd3 {[%clk 0:02:20]} 15. Bxg7 {[%clk 0:01:32]}  Kxg7 {[%clk 0:02:20]} 16. Qxd3 {[%clk 0:01:31]}  d5 {[%clk 0:02:16]} 17. exd5 {[%clk 0:01:18]}  Qxd5 {[%clk 0:02:17]} 18. Qxd5 {[%clk 0:01:18]}  exd5 {[%clk 0:02:18]} 19. Rb6 {[%clk 0:01:12]}  Re8 {[%clk 0:01:22]} 20. Nd4 {[%clk 0:01:10]}  Re7 {[%clk 0:01:21]} 21. Rfb1 {[%clk 0:01:05]}  Ra7 {[%clk 0:01:17]} 22. f3 {[%clk 0:01:00]}  Be6 {[%clk 0:01:16]} 23. Kf2 {[%clk 0:00:58]}  Kf8 {[%clk 0:01:10]} 24. c3 {[%clk 0:00:50]}  Ke8 {[%clk 0:01:09]} 25. g4 {[%clk 0:00:49]}  Kd8 {[%clk 0:00:59]} 26. a4 {[%clk 0:00:49]}  Kc7 {[%clk 0:00:54]} 27. a5 {[%clk 0:00:48]}  Bd7 {[%clk 0:00:52]} 28. h4 {[%clk 0:00:41]}  Re5 {[%clk 0:00:50]} 29. Rf6 {[%clk 0:00:38]}  Re7 {[%clk 0:00:47]} 30. h5 {[%clk 0:00:36]}  Ra8 {[%clk 0:00:43]} 31. Rfb6 {[%clk 0:00:34]}  Bc6 {[%clk 0:00:31]} 32. hxg6 {[%clk 0:00:28]}  hxg6 {[%clk 0:00:29]} 33. Nxc6 {[%clk 0:00:28]}  bxc6 {[%clk 0:00:29]} 34. Rb7+ {[%clk 0:00:28]}  Kd6 {[%clk 0:00:29]} 35. Rxe7 {[%clk 0:00:29]}  Kxe7 {[%clk 0:00:30]} 36. Rb6 {[%clk 0:00:29]}  Kd6 {[%clk 0:00:30]} 37. Ke3 {[%clk 0:00:29]}  Kc7 {[%clk 0:00:18]} 38. Kf4 {[%clk 0:00:28]}  Re8 {[%clk 0:00:13]} 39. Rxa6 {[%clk 0:00:26]}  Re2 {[%clk 0:00:14]} 40. Ra7+ {[%clk 0:00:24]}  Kd6 {[%clk 0:00:13]} 41. Rxf7 {[%clk 0:00:20]}  Rxd2 {[%clk 0:00:14]} 42. a6 {[%clk 0:00:21]}  Ra2 {[%clk 0:00:13]} 43. a7 {[%clk 0:00:21]}  c5 {[%clk 0:00:08]} 44. Rf6+ {[%clk 0:00:20]}  Ke7 {[%clk 0:00:08]} 45. Rxg6 {[%clk 0:00:20]}  Kf7 {[%clk 0:00:03]} 46. Rc6 {[%clk 0:00:18]}  d4 {[%clk 0:00:02]} 47. cxd4 {[%clk 0:00:17]}  cxd4 {[%clk 0:00:03]} 48. Rc7+ {[%clk 0:00:17]}  Ke6 {[%clk 0:00:03]} 49. Ke4 {[%clk 0:00:17]}  Ra4 {[%clk 0:00:03]} 50. g5 {[%clk 0:00:16]}  Kd6 {[%clk 0:00:03]} 51. Rh7 {[%clk 0:00:16]}  Ke6 {[%clk 0:00:02]} 52. Rh6+ {[%clk 0:00:13]}  Kf7 {[%clk 0:00:02]} 53. Rh8 {[%clk 0:00:09]}  Kg6 {[%clk 0:00:03]} 54. a8=Q {[%clk 0:00:08]}  Rxa8 {[%clk 0:00:01]} 55. Rxa8 {[%clk 0:00:09]}  Kxg5 {[%clk 0:00:01]} 56. Kxd4 {[%clk 0:00:07]}  Kf6 {[%clk 0:00:02]} 1-0


[Site "https://www.chess.com"]